{"text_format":"1","workbook":"xlsx","n_sheets":9,"sheets":["Contact and Other Information","Data","Code2","Program","Performance","Annual Financial Report ","Code","Sheet1","Sheet2"],"not_rendered":{"charts":0,"images":0,"macros":1,"external_links":1,"defined_names":12,"comments":0,"pivot_tables":0},"unopened":[],"bounds":{"document_bytes":16777216,"sheet_cells":100000,"rows_first":2000,"rows_last":500,"rows_between":2000,"halvings":0,"cell_chars":16384,"cell_head_chars":4096},"cells_cut":0,"cells_raw":0,"read":"whole","date_system":"1900"}

{"sheet":"Contact and Other Information","index":0,"n_rows":50,"n_cols":9,"rows_kept":50,"cut":false,"hidden":false,"merged":[[0,1,0,6],[20,1,20,3],[21,1,21,3],[49,1,49,5],[31,1,31,3],[32,1,32,3],[27,1,27,3],[28,1,28,3],[29,1,29,3],[30,1,30,3],[17,3,17,4],[22,1,22,3],[23,1,23,3],[24,1,24,3],[26,1,26,3],[25,1,25,3],[13,3,13,4],[14,3,14,4],[15,3,15,4],[13,1,15,2],[16,3,16,4],[35,1,35,3],[33,1,33,3],[36,1,36,3],[34,1,34,3],[37,1,37,3],[39,1,39,5],[41,1,41,5],[43,1,43,5],[45,1,45,5],[47,1,47,5],[49,6,49,8],[39,6,39,8],[41,6,41,8],[43,6,43,8],[45,6,45,8],[47,6,47,8]]}
[]
[null,null,null,null," "]
[]
[1,"Court/County"]
[]
[2,"Court Contact:"]
[3,"Telephone Number:"]
[4,"E-mail Address:"]
[null,null,null," "]
[5,"County Contact:"]
[6,"Telephone Number:"]
[7,"E-mail Address:"]
[]
[8,"List collection agencies or programs used by order in which debt is referred:",null,"1."]
[9,null,null,"2."]
[10,null,null,"3."]
[null,null,null,4]
[null,null,null,5]
[]
[]
[11,"Does your court/county have a comprehensive collections program pursuant to Penal Code 1463.007?"]
[12,"Which of the comprehensive collection program components, pursuant to Penal Code 1463.007, does your court/county currently use?  If you indicated YES to question #11, you must check all in section I and at least 5 components in section II.",null,null,"Components used by Court ","Components used by County ","Components used by Private Agency ","Components used by FTB ","Components used by       Intra-branch "]
["I.","a. Attempts telephone contact with delinquent debtors for whom the program has a phone number to inform them of their delinquent status and payment options."]
[null,"b. Notifies delinquent debtors for whom the program has an address in writing of their outstanding obligation within 95 days of delinquency."]
[null,"c. Generates internal monthly reports to track collections data, such as age of debt and delinquent amounts outstanding."]
[null,"d. Uses Department of Motor Vehicles information to locate delinquent debtors."]
[null,"e. Accepts payment of delinquent debt by credit card."]
["II.","a. Sends delinquent debt to the Franchise Tax Board's Court-Ordered Debt Collections Program."]
[null,"b. Sends delinquent debt to the Franchise Tax Board's Interagency Intercept Collections Program."]
[null,"c. Initiates driver's license suspension or hold actions when appropriate."]
[null,"d. Contracts with one or more private debt collectors to collect delinquent debt."]
[null,"e. Sends monthly bills or account statements to all delinquent debtors."]
[null,"f. Contracts with local, regional, state, or national skip tracing or locator resources or services to locate delinquent debtors."]
[null,"g. Coordinates with the probation department to locate debtors who may be on formal or informal probation."]
[null,"h. Uses Employment Development Department employment and wage information to collect delinquent debt."]
[null,"i. Establishes wage and bank account garnishments where appropriate."]
[null,"j. Places liens on real property owned by delinquent debtors when appropriate."]
[null,"k. Uses an automated dialer or automatic call distribution system to manage telephone calls."]
[]
[13,"Does the court impose a civil assessment for failure to appear on infraction cases?"]
[]
[14,"Does the court impose civil assessment for failure to pay on infraction cases?"]
[]
[15,"Does the court impose a civil assessment for failure to pay on misdemeanor cases? "]
[]
[16,"Does the court impose a civil assessment for failure to pay on felony cases?"]
[]
[17,"Does the court impose a civil assessment on any other case type? If yes, explain in the Program Report worksheet. "]
[]
[18,"Collection program to which the majority of delinquent debt is initially referred."]

{"sheet":"Data","index":1,"n_rows":38,"n_cols":4,"rows_kept":38,"cut":false,"hidden":true,"merged":[]}
["Quarter",1,2]
["Court/County",{"$f":"INDEX(Code!A1:A59,C2)","v":"Not Selected"},1,{"$f":"INDEX(Code!B1:B59,C2)","v":"SELECT COURT/COUNTY "}]
["Court Contact",{"$f":"'Contact and Other Information'!C6","v":0}]
["Court Telephone",{"$f":"'Contact and Other Information'!C7","v":0}]
["Court E-mail Address",{"$f":"'Contact and Other Information'!C8","v":0}]
["County Contact",{"$f":"'Contact and Other Information'!C10","v":0}]
["County Telephone",{"$f":"'Contact and Other Information'!C11","v":0}]
["County E-mail Address",{"$f":"'Contact and Other Information'!C12","v":0}]
["Private Collection Agency 1",{"$f":"'Contact and Other Information'!D14","v":"1."},1]
["Private Collection Agency 2",{"$f":"'Contact and Other Information'!D15","v":"2."},1]
["Private Collection Agency 3",{"$f":"'Contact and Other Information'!D16","v":"3."},1]
["Comprehensive Program",{"$f":"IF(C12=2,\"Y\",IF(C12=3,\"N\",\"Not Selected\"))","v":"Not Selected"},1]
["Component A",false,{"$f":"IF(B13=TRUE,1,0)","v":0}]
["Component B",false,{"$f":"IF(B14=TRUE,1,0)","v":0}]
["Component C",false,0]
["Component D",false,0]
["Component E",false,0]
["Component F",false,0]
["Component G",false,0]
["Component H",false,0]
["Component I",false,0]
["Component J",false,0]
["Component K",false,0]
["Component L",false,0]
["Component M",false,0]
["Component N",false,0]
["Total # of Components",false]
["Debit",false,1]
["Internet payment",false,1]
["Fee waiver",{"$f":"IF(C30=2,\"Y\",IF(C30=3,\"N\",\"Not Selected\"))","v":"Not Selected"},1]
["NSF checks",{"$f":"IF(C31=2,\"Y\",IF(C31=3,\"N\",\"Not Selected\"))","v":"N"},3]
[null,null,2]
[null,null,1]
[null,null,1]
[null,null,2]
[null,null,1]
[null,null,1]
[null,null,1]

{"sheet":"Code2","index":2,"n_rows":38,"n_cols":4,"rows_kept":38,"cut":false,"hidden":true,"merged":[]}
[]
["Select Primary Program"]
["County",null,null,1]
["Court"]
["Private Agency"]
["Hybrid "]
[]
[]
[]
["Select System Used",null,null,1]
["Case Management System"]
["Accounts Receivable System"]
["CUBS"]
["Other"]
[]
["Select Programs That Apply"]
["Court"]
["County"]
["Count and County"]
["None"]
[]
[]
["Questions","Response"]
[30,1,null,1]
[{"$f":"SUM(A24+1)","v":31},1]
[{"$f":"SUM(A25+1)","v":32},1]
[33,1]
[34,1]
[35,1]
[36,6]
[37,6]
[38,6]
[39,6]
[40,1]
[41,1]
[42,1]
[43,1]
[44,1]

{"sheet":"Program","index":3,"n_rows":28,"n_cols":1,"rows_kept":28,"cut":false,"hidden":false,"merged":[[4,0,25,0],[27,0,48,0]]}
[{"$f":"[1]Data!D2","v":"Select court/county (see Contact Information worksheet #1)"}]
["Use the space below to describe your collection program."]
[]
["Describe the extent to which your collection program is meeting the Judicial Council approved Collections Best Practices and identify any obstacles or problems that prevent the collections program from meeting those objectives. In the description please identify which of the twenty-five (25) Best Practices your collection program has not been implemented. Also, identify any new or additional practices that have improved your collections program. "]
["Type here."]
[]
[]
[]
[]
[]
[]
[]
[]
[]
[]
[]
[]
[]
[]
[]
[]
[]
[]
[]
[]
[]
["Please identify areas in collections (check all that apply) in which program staff would like to receive training, assistance, or additional information.  "]
["____ Civil Assessment                           _____ Revenue Distribution                                   _____ Private Collection Vendor Selection  \n____ Cost Recovery                              _____ Discharge from Accountability                     _____ Other Collections-Related Issues   \n                                    \n\n Additional comments:                                "]

{"sheet":"Performance","index":4,"n_rows":19,"n_cols":1,"rows_kept":19,"cut":false,"hidden":false,"merged":[[18,0,56,1],[0,0,0,1],[1,0,1,1],[3,0,3,1],[4,0,15,1],[17,0,17,1]]}
[{"$f":"[1]Data!D2","v":"Select court/county (see Contact Information worksheet #1)"}]
["Use the space below to discuss your collection program."]
[]
["Please provide any comments on your Gross Recovery Rate or Success Rate. "]
["Type here."]
[]
[]
[]
[]
[]
[]
[]
[]
[]
[]
[]
[]
["Additional operational information about your collection program for this Reporting Period. "]
["                                                                                                                                                                                                                                                                                                                                                                                                                                                                                                                                                                                                                                                                                                                                                                                                                                                  "]

{"sheet":"Annual Financial Report ","index":5,"n_rows":122,"n_cols":14,"rows_kept":122,"cut":false,"hidden":false,"merged":[[3,0,3,15],[32,2,32,7],[6,0,6,4],[12,0,12,7],[24,2,24,7],[25,2,25,7],[26,2,26,7],[27,2,27,7],[28,2,28,7],[29,2,29,7],[30,2,30,7],[31,2,31,7],[55,2,55,7],[33,2,33,7],[34,2,34,7],[35,2,35,7],[36,2,36,7],[37,2,37,7],[39,0,39,7],[50,2,50,7],[51,2,51,7],[52,2,52,7],[53,2,53,7],[54,2,54,7],[93,0,93,7],[56,2,56,7],[57,2,57,7],[61,0,61,7],[73,2,73,7],[74,2,74,7],[75,2,75,7],[76,2,76,7],[77,2,77,7],[79,0,79,7],[90,2,90,7],[91,2,91,7],[97,3,97,4],[97,5,97,7],[99,0,99,7],[121,1,121,2],[94,3,94,4],[94,5,94,7],[95,3,95,4],[95,5,95,7],[96,3,96,4],[96,5,96,7]]}
[]
[]
[]
[{"$f":"Data!D2","v":"SELECT COURT/COUNTY "}]
[]
[]
["REPORTING PERIOD"]
[null,null,"Reporting Period"]
["Row","Program","Col. A"]
[1,"Beginning Date","2012-07-01","First day of Reporting Period"]
[{"$f":"A10+1","v":2},"Ending Date","2013-06-30","Last day of Reporting Period"]
[null,null,null,null,null,null,null,null,"      <--- Out of balance error conditions detected in the column"]
["FINES, FEES, FORFEITURES, PENALTIES AND ASSESSMENTS"]
[null,null,"Number of Cases Established/Referred/ Transferred in Period","Value of Cases Established/Referred/ Transferred in Period","Gross Revenue Collected During the Period","Cost of Collections (pursuant to Penal Code 1463.007)","Adjustments","Discharge from Accountability "]
["Row","Program","Col. B","Col. C","Col. D","Col. E","Col. F","Col. G"]
[3,"Non-Delinquent Collections"]
[{"$f":"A16+1","v":4},"Court Collection Program"]
[5,"County Collection Program"]
[6,"Private Agency"]
[7,"FTB Court-Ordered Debt"]
[8,"Intra-branch Program"]
[9,"Other"]
[10,"Total",{"$f":"SUM(C17:C22)","v":0},{"$f":"SUM(D17:D22)","v":0},{"$f":"SUM(E16:E22)","v":0},{"$f":"SUM(F17:F22)","v":0},{"$f":"SUM(G17:G22)","v":0},{"$f":"SUM(H17:H22)","v":0}]
[]
["Row","Quality Checklist","Quality Criteria",null,null,null,null,null," Error messages counted in this column ---------------------->"]
[11,null,"Rows 3-9 include all fines, fees, forfeitures, penalties, and assessments except victim restitution and other justice related fees (see Row 46 for more information).",null,null,null,null,null," Value of check boxes detected here --------->",null,null,null,false,{"$f":"IF(M26=TRUE,0,1)","v":1}]
[{"$f":"A26+1","v":12},null,"Rows 3-9 include traffic, criminal, and juvenile delinquency case types. ",null,null,null,null,null,"  These are linked to check box properties",null,null,null,false,{"$f":"IF(M27=TRUE,0,1)","v":1}]
[13,null,"Rows 3-9 include infractions, misdemeanors and felonies.",null,null,null,null,null,null,null,null,null,false,{"$f":"IF(M28=TRUE,0,1)","v":1}]
[14,null,"Row 3 includes all collections for cases that were paid in full on or before the due date, or current installment or accounts receivable (A/R) payment plan.  ",null,null,null,null,null,null,null,null,null,false,{"$f":"IF(M29=TRUE,0,1)","v":1}]
[15,null,"Row, 3, Column  D, includes all revenue collected for non-delinquent infraction, misdemeanor and felony cases. ",null,null,null,null,null,null,null,null,null,false,{"$f":"IF(M30=TRUE,0,1)","v":1}]
[16,null,"Rows 3-9 include cases referred/established, revenue collected, adjustments, or discharges posted during the reporting period. ",null,null,null,null,null,null,null,null,null,false,{"$f":"IF(M31=TRUE,0,1)","v":1}]
[17,null,"Rows 4-9, Columns B and C, represents new debt established or referred to collection programs.",null,null,null,null,null,null,null,null,null,false,{"$f":"IF(M32=TRUE,0,1)","v":1}]
[18,null,"Column C also includes debt that is transferred or returned from one collection program to another during the reporting period.",null,null,null,null,null,null,null,null,null,false,1]
[19,null,"Rows 4-9 include all cases that were not paid in full on or before the due date. ",null,null,null,null,null,null,null,null,null,false,1]
[20,null,"Rows 4-9, Column D includes all monies received towards the satisfaction of delinquent court-ordered debts. ",null,null,null,null,null,null,null,null,null,false,1]
[21,null,"Column E includes the cost of collections that, pursuant to PC 1463.007, is allowable to offset revenue prior to distribution to other governmental entities. Cost of collections is entered in Column E as a negative number unless posting a reversal.",null,null,null,null,null,null,null,null,null,false,1]
[22,null,"Value reported in Column F includes all court-ordered suspensions, alternative sentences, dismissals, or other non-cash adjustments that decrease or increase the amount outstanding for individual debt items.",null,null,null,null,null,null,null,null,null,false,1]
[23,null,"Value reported in Column G includes all debt deemed uncollectible that has been discharged, per Government Code section 25257-25259.95.  ",null,null,null,null,null,null,null,null,null,false,1]
[]
["FINES, FEES, FORFEITURES, PENALTIES AND ASSESSMENTS: BEGINNING AND ENDING BALANCES"]
[null,null,"Number of Cases - Beginning Balance","Value of Cases - Beginning Balance","Change in Value (from above)","Number of Cases - Ending Balance","Value of Cases - Ending Balance","Error Messages"]
["Row","Program","Col. H","Col. I","Col. J","Col. K","Col. L","Col M"]
[24,"Court Collection Program",null,null,{"$f":"SUM(D17-E17-G17-H17)","v":0},null,null,{"$f":"IF(D43+E43=G43,\" \",\"Out of Balance\")","v":" "},{"$f":"IF(((D43+E43)=G43),0,1)","v":0}]
[{"$f":"A43+1","v":25},"County Collection Program",null,null,{"$f":"SUM(D18-E18-G18-H18)","v":0},null,null," ",0]
[26,"Private Agency",null,null,0,null,null," ",0]
[27,"FTB Court-Ordered Debt",null,null,0,null,null," ",0]
[28,"Intra-branch Program",null,null,0,null,null," ",0]
[29,"Other",null,null,0,null,null," ",0]
[30,"Total",{"$f":"SUM(C43:C48)","v":0},{"$f":"SUM(D43:D48)","v":0},{"$f":"SUM(E43:E48)","v":0},{"$f":"SUM(F43:F48)","v":0},{"$f":"SUM(G43:G48)","v":0}]
[]
["Row","Quality Checklist","Quality Criteria"]
[31,null,"Rows 24-29 include fines, fees, forfeitures, penalties, and assessments except victim restitution and other justice related fees.",null,null,null,null,null,null,null,null,null,false,{"$f":"IF(M52=TRUE,0,1)","v":1}]
[{"$f":"A52+1","v":32},null,"Rows 24-29 include cases that have been referred to a collection program.",null,null,null,null,null,null,null,null,null,false,1]
[33,null,"Columns I and L includes traffic, criminal, and juvenile delinquency case types. ",null,null,null,null,null,null,null,null,null,false,1]
[34,null,"Number of cases and value reported in Columns I and L reconcile to figures reported from underlying systems and vendors. ",null,null,null,null,null,null,null,null,null,false,1]
[35,null,"Number of cases and value reported in columns H and I match ending value reported in prior year.",null,null,null,null,null,null,null,null,null,false,1]
[36,null,"Value of cases at end of period (Column L) balances to value of cases at beginning of period (Column I), plus change in value reported in Column J (which is the sum of Column C less the amounts shown in Columns D, F, and G).",null,null,null,null,null,null,null,null,null,false,1]
[37,null,"No error messages shown in Column M.  Note: An error message in Column M indicates that the beginning balance in Column I, plus the value of transactions reported in Column J (J = C- D - F- G) does not equal the ending balance reported in Column L.",null,null,null,null,null,null,null,null,null,false,1]
[]
[]
[]
[" VICTIM RESTITUTION AND OTHER JUSTICE RELATED REIMBURSEMENTS "]
[null,null," Number of Cases Established/ Referred/ Transferred  in Period","Value of Cases Established/ Referred/ Transferred in Period","Gross Revenue Collected During the Period","Adjustments"," Victim Restitution       (PC1202.4 (f))","Change in Value"]
["Row","Program","Col. N","Col. O","Col. P","Col. Q","Col. R","Col. S"]
[38,"Non-Delinquent Collections"]
[{"$f":"A65+1","v":39},"Court Collection Program",null,null,null,null,null,{"$f":"SUM(D66-E66-F66-G66)","v":0}]
[40,"County Collection Program",null,null,null,null,null,{"$f":"SUM(D67-E67-F67-G67)","v":0}]
[41,"Private Agency",null,null,null,null,null,{"$f":"SUM(D68-E68-F68-G68)","v":0}]
[42,"FTB Court-Ordered Debt",null,null,null,null,null,0]
[43,"Intra-branch Program",null,null,null,null,null,0]
[44,"Other",null,null,null,null,null,0]
[45,"Total",{"$f":"SUM(C66:C71)","v":0},{"$f":"SUM(D66:D71)","v":0},{"$f":"SUM(E65:E71)","v":0},{"$f":"SUM(F66:F71)","v":0},{"$f":"SUM(G65:G71)","v":0},{"$f":"SUM(H66:H71)","v":0}]
[]
["Row","Quality Checklist","Quality Criteria"]
[46,null,"Rows 38-44 include victim restitution and other justice related fees owed to other entities that were not included in Rows  4-9.",null,null,null,null,null,null,null,null,null,false,{"$f":"IF(M75=TRUE,0,1)","v":1}]
[{"$f":"A75+1","v":47},null,"Rows 38-44 include only cases referred/established, revenue collected, or adjustment posted during the reporting period.",null,null,null,null,null,null,null,null,null,false,{"$f":"IF(M76=TRUE,0,1)","v":1}]
[{"$f":"A76+1","v":48},null,"Column P includes gross revenue collected on other justice related fees and should be entered as a positive number unless posting reversal. Adjustments in Column Q are entered as a positive number if it causes the outstanding balance to decrease or as a negative number if it causes the outstanding balance to increase.",null,null,null,null,null,null,null,null,null,false,{"$f":"IF(M77=TRUE,0,1)","v":1}]
[{"$f":"A77+1","v":49},null,"Column R includes revenue collected on restitution owed to a victim by court order under Penal Code section 1202.4 (f). ",null,null,null,null,null,null,null,null,null,false,{"$f":"IF(M78=TRUE,0,1)","v":1}]
[]
["VICTIM RESTITUTION AND OTHER JUSTICE RELATED REIMBURSEMENTS: BEGINNING AND ENDING BALANCES"]
[null,null,"Number of Cases - Beginning Balance","Value of Cases - Beginning Balance","Number of Cases - Ending Balance","Value of Cases - Ending Balance","Description of Items Included","Error Messages"]
["Row","Program","Col. T","Col. U","Col. V","Col. W","Col. X","Col. Y"]
[50,"Court Collection Program",null,null,null,null,null,{"$f":"IF(D83+H66=F83,\" \",\"Out of Balance\")","v":" "},{"$f":"IF((D83+H66)=F83,0,1)","v":0}]
[{"$f":"A83+1","v":51},"County Collection Program",null,null,null,null,null,{"$f":"IF(D84+H67=F84,\" \",\"Out of Balance\")","v":" "},0]
[52,"Private Agency",null,null,null,null,null," ",0]
[53,"FTB Court-Ordered Debt",null,null,null,null,null," ",0]
[54,"Intra-branch Program",null,null,null,null,null," ",0]
[55,"Other",null,null,null,null,null," ",0]
[56,"Total",{"$f":"SUM(C83:C88)","v":0},{"$f":"SUM(D83:D88)","v":0},{"$f":"SUM(E83:E88)","v":0},{"$f":"SUM(F83:F88)","v":0}]
[]
["Row","Quality Checklist","Quality Criteria"]
[57,null,"Rows 50-55 include any victim restitution and other justice related fees owed to other entities that were not included in rows 24-29.",null,null,null,null,null,null,null,null,null,false,{"$f":"IF(AND($F$89>0,M92=FALSE),1,0)","v":0}]
[]
["COLLECTIONS METRICS FOR FINES, FEES, FORFEITURES, PENALTIES AND ASSESSMENTS"]
[null,"Metric","Current Performance","Formula",null,"Definition"]
["Row","Col. Z","Col. AA","Col. AB",null,"Col. AC"]
[58,"Gross Recovery Rate",{"$f":"IF((D23)>0,SUM((E23+G23+H23-E16)/(D23)),\" \")","v":" "}," (Collections + Adjustments + Discharges)\n                      Referrals\n",null,"Measures a collection program’s ability to resolve delinquent court-ordered debt, including alternative sentences, community service, suspended sentences and discharges. ",null,null,null,null,null,null,"ERRCNT",{"$f":"SUM(N23:N96)","v":24}]
[{"$f":"A97+1","v":59},"Success Rate",{"$f":"IF((D23-G23-H23)>0,SUM((E23-E16)/(D23-G23-H23)),\" \")","v":" "},"                    Collections                       \n   (Referrals - Adjustments - Discharges)\n",null,"Measures the amount of revenue collected on delinquent court-ordered debt based on total delinquent accounts referred after adjustments and discharges, including NSF checks. "]
[]
["ERROR/WARNING MESSAGES"]
[60,{"$f":"IF(SUM(I43:I49)>0,\"Error: Value of cases at end of period does not balance to value at beginning of period, plus transactions that occurred during the period\",\" \")","v":" "}]
[{"$f":"A101+1","v":61},{"$f":"IF(AND(G49>0,N97>0),\"WARNING: One or more Quality Checkist criteria have not been validated (checked)\",\" \")","v":" "}]
[]
[null,"Reviewed by Court"]
[]
[]
[]
[null,"Printed Name",null,null,"Signature"]
[]
[]
[null,"Date",null,null,"Title (Court Executive or Presiding Judge)"]
[]
[]
[null,"Reviewed by County"]
[]
[]
[]
[]
[null,"Printed Name",null,null,"Signature"]
[]
[]
[null,"Date",null,null,"Title (County Auditor-Controller or other)"]

{"sheet":"Code","index":6,"n_rows":59,"n_cols":13,"rows_kept":59,"cut":false,"hidden":true,"merged":[]}
["Not Selected","SELECT COURT/COUNTY ",null,null,"Select Y or N",null,null,"1st and 2nd Quarter",1,null,null,"LINE 8","LINE 18"]
["C010000","Court/County - Alameda",null,1,"Yes",null,null,"3rd and 4th Quarter",2,null,null,"Court","Court"]
["C020000","Court/County - Alpine",null,2,"No",null,null,null,null,null,null,"County","County"]
["C030000","Court/County - Amador",null,null,null,null,null,null,null,null,null,"Private Agency","Private Agency"]
["C040000","Court/County - Butte",null,null,null,null,null,null,null,null,null,"FTB-COD","FTB-COD"]
["C050000","Court/County - Calaveras",null,null,null,null,null,null,null,null,null,"Intra-branch","Intra-branch"]
["C060000","Court/County - Colusa",null,null,null,null,null,null,null,null,null,"None"]
["C070000","Court/County - Contra Costa"]
["C080000","Court/County - Del Norte"]
["C090000","Court/County - El Dorado"]
["C100000","Court/County - Fresno"]
["C110000","Court/County - Glenn"]
["C120000","Court/County - Humboldt"]
["C130000","Court/County - Imperial"]
["C140000","Court/County - Inyo"]
["C150000","Court/County - Kern"]
["C160000","Court/County - Kings"]
["C170000","Court/County - Lake"]
["C180000","Court/County - Lassen"]
["C190000","Court/County - Los Angeles"]
["C200000","Court/County - Madera"]
["C210000","Court/County - Marin"]
["C220000","Court/County - Mariposa"]
["C230000","Court/County - Mendocino"]
["C240000","Court/County - Merced"]
["C250000","Court/County - Modoc"]
["C260000","Court/County - Mono"]
["C270000","Court/County - Monterey"]
["C280000","Court/County - Napa"]
["C290000","Court/County - Nevada"]
["C300000","Court/County - Orange"]
["C310000","Court/County - Placer"]
["C320000","Court/County - Plumas"]
["C330000","Court/County - Riverside"]
["C340000","Court/County - Sacramento"]
["C350000","Court/County - San Benito"]
["C360000","Court/County - San Bernardino"]
["C370000","Court/County - San Diego"]
["C380000","Court/County - San Francisco"]
["C390000","Court/County - San Joaquin"]
["C400000","Court/County - San Luis Obispo"]
["C410000","Court/County - San Mateo"]
["C420000","Court/County - Santa Barbara"]
["C430000","Court/County - Santa Clara"]
["C440000","Court/County - Santa Cruz"]
["C450000","Court/County - Shasta"]
["C460000","Court/County - Sierra"]
["C470000","Court/County - Siskiyou"]
["C480000","Court/County - Solano"]
["C490000","Court/County - Sonoma"]
["C500000","Court/County - Stanislaus"]
["C510000","Court/County - Sutter"]
["C520000","Court/County - Tehama"]
["C530000","Court/County - Trinity"]
["C540000","Court/County - Tulare"]
["C550000","Court/County - Tuolumne"]
["C560000","Court/County - Ventura"]
["C570000","Court/County - Yolo"]
["C580000","Court/County - Yuba"]

{"sheet":"Sheet1","index":7,"n_rows":0,"n_cols":0,"rows_kept":0,"cut":false,"hidden":true,"merged":[]}

{"sheet":"Sheet2","index":8,"n_rows":0,"n_cols":0,"rows_kept":0,"cut":false,"hidden":true,"merged":[]}